Cogmind - Beta 10.2 @@@ ROGUE MODE // 2021.11.13 @ 10:30:26 Player: Dizzar Result: Self-destructed Performance ------------- Evolutions (2) 1000 Regions Visited (7) 1400 Robots Destroyed (40) 200 Value Destroyed (798) 798 Prototype IDs (25) 500 Alien Tech Used (0) 0 Bonus (300) 300 TOTAL SCORE: 4198 Bonus ------- Aligned with FarCom 300 Cogmind --------- Core Integrity 504/550 Matter 9/300 Energy 100/100 System Corruption 0% Temperature Cool (0) Movement Core (750) Ox14 Location -8/Materials Parts ------- > --- POWER (1) -------- (None) > --- PROPULSION (3) --- (None) > --- UTILITY (5) ------ Medium Storage Unit High-capacity Storage Unit Hardened Light Armor Plating > --- WEAPON (2) ------- (None) > --- INVENTORY (16) --- Light Ion Engine Light Treads Aluminum Leg Aluminum Leg Potential Leg Medium Storage Unit Large Storage Unit High-capacity Storage Unit Beam Cannon Shotgun Axe Peak State ------------ > --- POWER ------------ Ion Engine > --- PROPULSION ------- Potential Leg Potential Leg > --- UTILITY ---------- Medium Storage Unit High-capacity Storage Unit Heavy Armor Plating Hardened Light Armor Plating > --- WEAPON ----------- Grenade Launcher > --- INVENTORY -------- Light Ion Engine Light Treads Aluminum Leg Aluminum Leg Medium Storage Unit Large Storage Unit High-capacity Storage Unit Beam Cannon Shotgun [Rating: 33] Favorites ----------- Power Ion Engine Engine Ion Engine Propulsion Light Treads Treads Light Treads Leg Potential Leg Utility Hacking Suite Device Sensor Array Storage Large Storage Unit Hackware Hacking Suite Protection Hardened Light Armor Plating Weapon Grenade Launcher Energy Gun Beam Rifle Ballistic Gun Light Assault Rifle Launcher Grenade Launcher Build | -11 -10 -10 -9 -9 -9 -8 -8 ------- Run | Scr Mat Min Mat Min Exi Min Mat Slots Evolved 4 | . . . 2 . . . 2 Power . | . . . . . . . . Propulsion 1 | . . . . . . . 1 Utility 3 | . . . 2 . . . 1 Weapon . | . . . . . . . . Parts Attached 31 | 6 3 2 16 . 3 . 1 Power 2 | 1 . . 1 . . . . Engine 2 | 1 . . 1 . . . . Core . | . . . . . . . . Reactor . | . . . . . . . . Propulsion 9 | 2 . . 5 . 2 . . Treads 7 | 2 . . 5 . . . . Leg 2 | . . . . . 2 . . Wheel . | . . . . . . . . Hover . | . . . . . . . . Flight . | . . . . . . . . Utility 9 | 1 1 2 3 . 1 . 1 Device 1 | . 1 . . . . . . Storage 5 | 1 . 2 1 . 1 . . Processor . | . . . . . . . . Hackware 1 | . . . 1 . . . . Protection 2 | . . . 1 . . . 1 Artifact . | . . . . . . . . Weapon 11 | 2 2 . 7 . . . . Energy Gun 1 | . . . 1 . . . . Energy Cannon . | . . . . . . . . Ballistic Gun 4 | 2 1 . 1 . . . . Ballistic Cannon . | . . . . . . . . Launcher 6 | . 1 . 5 . . . . Special Weapon . | . . . . . . . . Impact Weapon . | . . . . . . . . Slashing Weapon . | . . . . . . . . Piercing Weapon . | . . . . . . . . Special Melee Weapon . | . . . . . . . . Unidentified Prototypes . | . . . . . . . . Parts Lost 11 | . 1 . 7 . . . 3 Power 1 | . . . 1 . . . . Propulsion 2 | . . . 2 . . . . Utility 2 | . 1 . . . . . 1 Weapon 6 | . . . 4 . . . 2 Highest Loss Streak 7 | . 1 . 7 . . . 2 Average Slot Usage (%) 92 | . 92 94 85 100 99 100 67 Engine 11 | . 14 14 9 11 11 11 8 Treads 19 | . 28 28 19 22 11 . . Leg 3 | . . . . . 10 22 16 Storage 20 | . 14 23 22 22 22 22 18 Hackware 7 | . . . 10 11 11 11 2 Protection 6 | . . . 3 11 11 11 14 Ballistic Gun 11 | . 28 28 14 . . . . Launcher 10 | . . . 6 22 22 22 7 Naked Turns . | . . . . . . . . Heaviest Build 68 | 12 13 32 64 64 64 56 68 Greatest Support 60 | 40 40 40 40 40 60 60 60 Greatest Overweight (x) 10 | . . . 10 1 2 . 1 Average Overweight (x) . | . . . . 1 . . . Largest Inventory Capacity 18 | 6 6 14 18 18 18 16 16 Average Capacity 13 | 5 6 11 14 18 17 16 16 Most Carried 11 | 3 6 7 9 9 10 11 11 Average Carried 7 | 2 3 5 6 9 9 9 10 Final Capacity 18 | 6 6 14 18 18 16 16 16 Final Carried 11 | 3 5 6 9 9 9 11 11 Class Distribution -------------------- 100% | Mutant Dominant Class ---------------- Mutant | -10/Materials Mutant | -10/Mines Mutant | -9/Materials Mutant | -9/Mines Mutant | -9/Exiles Mutant | -8/Mines Mutant | -8/Materials Resources | -11 -10 -10 -9 -9 -9 -8 -8 ----------- Run | Scr Mat Min Mat Min Exi Min Mat Matter Collected 724 | 256 111 55 233 14 . 55 . Remotely . | . . . . . . . . Salvage Created 978 | . 215 40 515 80 . 101 27 Parts 69 | . 20 3 35 7 . 3 1 Haulers Intercepted 2 | . . . 2 . . . . Recyclers Shooed 3 | . 1 . 2 . . . . Parts Field Recycled . | . . . . . . . . Retrieved Matter . | . . . . . . . . Parts Self-Destructed . | . . . . . . . . Prevented . | . . . . . . . . Kills | -11 -10 -10 -9 -9 -9 -8 -8 ------- Run | Scr Mat Min Mat Min Exi Min Mat Combat Hostiles Destroyed 26 | . 9 . 7 6 . 3 1 Guns 10 | . 7 . 3 . . . . AOE 16 | . 2 . 4 6 . 3 1 Classes Destroyed 12 | . 3 2 5 1 . 1 . Worker 4 | . . 1 2 1 . . . Builder 1 | . . . 1 . . . . Tunneler 2 | . . 1 1 . . . . Hauler 2 | . . . 2 . . . . Recycler 3 | . . . 3 . . . . Operator 1 | . 1 . . . . . . Watcher 1 | . . . 1 . . . . Swarmer 12 | . 5 . 3 4 . . . Grunt 8 | . 4 . 1 1 . 2 . Brawler 1 | . . . . . . 1 . Duelist 1 | . . . . 1 . . . Sentry 4 | . . . 3 . . . 1 Best Kill Streak 11 | . 6 1 11 7 . 3 1 Combat Bots Only 6 | . 6 . 3 6 . 3 1 Max Kills in Single Turn 4 | . 2 1 3 4 . 1 1 Gunslinging . | . . . . . . . . Exploded 3 | . 2 . 2 3 . 1 1 Melee . | . . . . . . . . Uniques/NPCs Destroyed . | . . . . . . . . Combat | -11 -10 -10 -9 -9 -9 -8 -8 -------- Run | Scr Mat Min Mat Min Exi Min Mat Damage Taken 1917 | . 368 . 961 71 . 65 452 Core 278 | . 22 . 173 . . 37 46 Absorbed by Shields . | . . . . . . . . Core Remaining (%) 79 | 100 . 91 . . . 47 . Volleys Fired 72 | . 33 2 23 6 . 3 5 Largest 2 | . 2 2 2 2 . 2 2 Hottest 86 | . 50 40 86 60 . 60 60 Shots Fired 138 | . 66 4 42 12 . 6 8 Gun 102 | . 65 4 33 . . . . Cannon . | . . . . . . . . Launcher 36 | . 1 . 9 12 . 6 8 Special . | . . . . . . . . Kinetic 99 | . 65 4 30 . . . . Thermal 3 | . . . 3 . . . . Explosive 36 | . 1 . 9 12 . 6 8 Electromagnetic . | . . . . . . . . Robot Hit Streak 11 | . 6 1 10 2 . 3 11 Robot Miss Streak 2 | . 2 2 2 1 . 1 . Penetration Max . | . . . . . . . . Secondary Targets 2 | . 1 . 1 . . . . Max Gunslinging Chain 1 | . 1 . 1 . . . . Shots Hit Robots 84 | . 41 1 26 4 . 4 8 Core Hits 67 | . 15 2 29 9 . 8 4 Critical Hits . | . . . . . . . . Critical Kills . | . . . . . . . . Critical Parts Destroyed . | . . . . . . . . Melee Attacks . | . . . . . . . . Impact . | . . . . . . . . Slashing . | . . . . . . . . Piercing . | . . . . . . . . Sneak Attacks . | . . . . . . . . Combat Hostiles . | . . . . . . . . Follow-up Attacks . | . . . . . . . . Damage Inflicted 2542 | . 559 28 1015 494 . 267 179 Guns 767 | . 477 16 274 . . . . Cannons . | . . . . . . . . Explosions 1758 | . 77 . 741 494 . 267 179 Melee . | . . . . . . . . Ramming 17 | . 5 12 . . . . . Kinetic 737 | . 477 16 244 . . . . Thermal 30 | . . . 30 . . . . Explosive 1758 | . 77 . 741 494 . 267 179 Electromagnetic . | . . . . . . . . Impact . | . . . . . . . . Slashing . | . . . . . . . . Piercing . | . . . . . . . . Highest Corruption . | . . . . . . . . Average Corruption . | . . . . . . . . Corruption Purged . | . . . . . . . . Overload Shots . | . . . . . . . . Overflow Damage 62 | . . . 15 28 . 19 . Projectiles . | . . . . . . . . Explosions 62 | . . . 15 28 . 19 . Melee . | . . . . . . . . Knockbacks 1 | . . 1 . . . . . Impact 1 | . . 1 . . . . . Kinetic . | . . . . . . . . Secondary . | . . . . . . . . Self-Inflicted Damage 118 | . 22 . 90 . . 6 . Shots 6 | . 1 . 4 . . 1 . Rammed 2 | . 1 1 . . . . . Targets Rammed 3 | . 1 2 . . . . . Kicked . | . . . . . . . . Crushed 1 | . . 1 . . . . . Highest Temperature 36 | . 6 . 18 24 . 36 20 Average Temperature 10 | . 6 . 7 9 . 22 11 Received Heat Transfer 522 | . 78 . 225 12 . 36 171 Siege Activations . | . . . . . . . . Robots Corrupted . | . . . . . . . . Combat Hostiles . | . . . . . . . . Parts Fried . | . . . . . . . . Impact Corruptions . | . . . . . . . . Robots Melted . | . . . . . . . . Combat Hostiles . | . . . . . . . . Parts Melted . | . . . . . . . . Heat Transferred 74 | . . . 74 . . . . Parts Sabotaged . | . . . . . . . . Parts Stolen . | . . . . . . . . Parts Stripped . | . . . . . . . . Power Chain Reactions . | . . . . . . . . Missiles Intercepted . | . . . . . . . . Alert | -11 -10 -10 -9 -9 -9 -8 -8 ------- Run | Scr Mat Min Mat Min Exi Min Mat Peak Influence 230 | . 230 99 154 205 . 103 175 Initial 89 | . . 89 . 60 . . 39 Average 76 | . 90 89 56 75 . 98 109 Maximum Alert Level 1 | . 1 . . 1 . . . Low Security (%) 93 | 100 80 100 100 83 . 100 100 Level 1 6 | . 19 . . 16 . . . Level 2 . | . . . . . . . . Level 3 . | . . . . . . . . Level 4 . | . . . . . . . . Level 5 . | . . . . . . . . High Security . | . . . . . . . . Max Security . | . . . . . . . . Squads Dispatched 6 | . 3 . 2 . . . 1 Investigation 2 | . 1 . 1 . . . . Extermination . | . . . . . . . . Reinforcement 4 | . 2 . 1 . . . 1 Assault . | . . . . . . . . Garrison . | . . . . . . . . Intercept . | . . . . . . . . Construction Impeded 1 | . . . 1 . . . . Haulers Reinforced . | . . . . . . . . Stealth | -11 -10 -10 -9 -9 -9 -8 -8 --------- Run | Scr Mat Min Mat Min Exi Min Mat Distress Signals 2 | . 2 . . . . . . Communications Jammed . | . . . . . . . . Distress Signals . | . . . . . . . . Times Spotted 49 | . 17 . 11 6 . 3 12 Peak Tracking Total 10 | . 5 . 5 4 . 3 10 Tactical Retreats 1 | . . . . . . . 1 Traps | -11 -10 -10 -9 -9 -9 -8 -8 ------- Run | Scr Mat Min Mat Min Exi Min Mat Traps Triggered 2 | . 1 . . . . . 1 Indirectly . | . . . . . . . . Trap Hack Attempts . | . . . . . . . . Triggered . | . . . . . . . . Disarmed . | . . . . . . . . Reprogrammed . | . . . . . . . . Reused . | . . . . . . . . Traps Extracted . | . . . . . . . . Installed . | . . . . . . . . Triggered . | . . . . . . . . Machines | -11 -10 -10 -9 -9 -9 -8 -8 ---------- Run | Scr Mat Min Mat Min Exi Min Mat Machines Disabled 4 | . 1 . 2 . . . 1 Max in Single Turn 2 | . 1 . 2 . . . 1 Machines Sabotaged . | . . . . . . . . Garrisons Compromised . | . . . . . . . . Overloaded Fab Kills . | . . . . . . . . Fab Network Shutdowns . | . . . . . . . . Hacking | -11 -10 -10 -9 -9 -9 -8 -8 --------- Run | Scr Mat Min Mat Min Exi Min Mat Machines Accessed 5 | . 1 . 2 . 1 . 1 Terminals 2 | . . . 1 . . . 1 Fabricators . | . . . . . . . . Repair Stations 1 | . . . 1 . . . . Recycling Units 1 | . 1 . . . . . . Scanalyzers . | . . . . . . . . Garrison Access . | . . . . . . . . Total Hacks 15 | . 1 . 11 . 1 . 2 Successful 10 | . 1 . 7 . 1 . 1 Failed 5 | . . . 4 . . . 1 Catastrophic . | . . . . . . . . Database Lockouts . | . . . . . . . . Manual 6 | . . . 3 . 1 . 2 Terminals 6 | . . . 4 . . . 2 Fabricators . | . . . . . . . . Repair Stations 7 | . . . 7 . . . . Recycling Units 1 | . 1 . . . . . . Scanalyzers . | . . . . . . . . Garrison Access . | . . . . . . . . Terminal Hacks 2 | . . . 1 . 1 . . Prototype ID Bank 1 | . . . 1 . . . . EX-Prototype ID Bank 1 | . . . . . 1 . . Fabricator Hacks . | . . . . . . . . Repair Station Hacks 6 | . . . 6 . . . . Scan Component 3 | . . . 3 . . . . Repair 3 | . . . 3 . . . . Recycling Unit Hacks 1 | . 1 . . . . . . Retrieve Components 1 | . 1 . . . . . . Scanalyzer . | . . . . . . . . Garrison Access Hacks . | . . . . . . . . Unauthorized Hacks 1 | . . . . . . . 1 Terminals 1 | . . . . . . . 1 Disrupt 1 | . . . . . . . 1 Fabricators . | . . . . . . . . Repair Stations . | . . . . . . . . Recycling Units . | . . . . . . . . Scanalyzers . | . . . . . . . . Garrison Access . | . . . . . . . . Data Cores Recovered . | . . . . . . . . Used . | . . . . . . . . Hacking Detections 2 | . . . 2 . . . . Full Trace Events . | . . . . . . . . Feedback Events . | . . . . . . . . Feedback Blocked . | . . . . . . . . Robot Schematics Acquired . | . . . . . . . . Robots Built . | . . . . . . . . Matter . | . . . . . . . . Time . | . . . . . . . . Total Robot Build Rating . | . . . . . . . . Part Schematics Acquired . | . . . . . . . . Parts Built . | . . . . . . . . Matter . | . . . . . . . . Time . | . . . . . . . . Total Part Build Rating . | . . . . . . . . Parts Repaired 3 | . . . 3 . . . . Time 78 | . . . 78 . . . . Parts Recycled . | . . . . . . . . Recycled Matter . | . . . . . . . . Retrieved Matter . | . . . . . . . . Retrieved Components 6 | . 6 . . . . . . Parts Scanalyzed . | . . . . . . . . Part Schematics Acquired . | . . . . . . . . Parts Damaged . | . . . . . . . . Bothacking | -11 -10 -10 -9 -9 -9 -8 -8 ------------ Run | Scr Mat Min Mat Min Exi Min Mat Used RIF Installer . | . . . . . . . . Robots Hacked . | . . . . . . . . Non-combat . | . . . . . . . . Combat . | . . . . . . . . Robot Hacks Applied . | . . . . . . . . Relay Couplers Released . | . . . . . . . . Robots Rewired . | . . . . . . . . Allies Hacked . | . . . . . . . . Hacks Repelled . | . . . . . . . . Allies | -11 -10 -10 -9 -9 -9 -8 -8 -------- Run | Scr Mat Min Mat Min Exi Min Mat Total Allies . | . . . . . . . . Largest Group . | . . . . . . . . Highest-Rated Group . | . . . . . . . . Highest-Rated Ally . | . . . . . . . . Total Orders . | . . . . . . . . Ally Attacks . | . . . . . . . . Total Damage . | . . . . . . . . Kills . | . . . . . . . . Allies Corrupted . | . . . . . . . . Allies Melted . | . . . . . . . . Intel | -11 -10 -10 -9 -9 -9 -8 -8 ------- Run | Scr Mat Min Mat Min Exi Min Mat Robot Analysis Total . | . . . . . . . . Derelict Logs Recovered 3 | . . 2 . 1 . . . Drone Launches . | . . . . . . . . Drone Recoveries . | . . . . . . . . Exploration | -11 -10 -10 -9 -9 -9 -8 -8 ------------- Run | Scr Mat Min Mat Min Exi Min Mat Turns Passed 2710 | 85 356 415 636 511 421 134 152 Spaces Moved 1575 | 47 139 250 263 273 346 132 125 Core 7 | 4 . . 3 . . . . Treads 1084 | 43 139 250 260 273 119 . . Legs 484 | . . . . . 227 132 125 Wheels . | . . . . . . . . Hover . | . . . . . . . . Flight . | . . . . . . . . Fastest Speed 45 | 50 160 160 160 180 45 45 45 Average Speed 144 | 150 160 160 166 180 119 87 94 Slowest Speed 550 | 160 160 160 550 180 180 90 130 Overloaded Moves 80 | . . . . . 11 7 62 Propulsion Burnouts . | . . . . . . . . Robots Hopped . | . . . . . . . . Cave-ins Triggered . | . . . . . . . . Exploration Rate (%) 42 | 4 29 77 34 43 85 51 19 Regions Visited 7 Branch Regions 4 Pre-discovered Areas 1 | . . 1 . . . . . Known Exits Taken 1 | . . . . 1 . . . Unknown Exits Taken 6 | 1 1 1 1 . 1 1 . Scrap Searched 3 | . . 1 . 1 . 1 . Spaces Dug 21 | . . . 4 17 . . . Terrain Destroyed 176 | . . . 46 80 . 36 14 Melee . | . . . . . . . . Projectile . | . . . . . . . . AOE 176 | . . . 46 80 . 36 14 Terrain Rammed . | . . . . . . . . Walls Destroyed . | . . . . . . . . Machines Disabled . | . . . . . . . . Actions | -11 -10 -10 -9 -9 -9 -8 -8 --------- Run | Scr Mat Min Mat Min Exi Min Mat Total 1884 | 61 213 261 422 281 352 144 150 Wait 166 | . 34 . 104 3 . 9 16 Move 1568 | 46 138 249 262 272 345 131 125 Hop . | . . . . . . . . Pick Up 36 | 9 3 4 15 . 2 1 2 Fast Attach . | . . . . . . . . Attach 25 | 6 2 1 13 . 2 . 1 Detach 3 | . 1 . 2 . . . . Swap 6 | . 1 1 3 . 1 . . Drop 5 | . . 2 . . 2 . 1 Fire 72 | . 33 2 23 6 . 3 5 Melee . | . . . . . . . . Ram . | . . . . . . . . Kick . | . . . . . . . . Crush 3 | . 1 2 . . . . . Escape Stasis . | . . . . . . . . Rewire . | . . . . . . . . Trap . | . . . . . . . . Miscellaneous . | . . . . . . . . Route ------- -11/Scrapyard -10/Materials -10/Mines -9/Materials -9/Mines (discovered 2 exits: *Mat / *Exi) -9/Exiles -8/Mines -8/Materials History --------- Turn | Location | Event 2 | -11/Scrapyard | Discovered new exit (range 16) 86 | -11/Scrapyard | Entered Materials 135 | -10/Materials | Discovered new exit (range 9) 301 | -10/Materials | Build established: Mutant 442 | -10/Materials | Entered Mines 698 | -10/Mines | Learned Materials trap positions 701 | -10/Mines | Learned location of Storage (-7) 849 | -10/Mines | Discovered new exit (range 6) 857 | -10/Mines | Entered Materials 857 | -9/Materials | Evolved 2 slots: Utility x2 858 | -9/Materials | Loaded intel: 13 trap records 928 | -9/Materials | Repaired Lgt. Treads 956 | -9/Materials | Repaired Grenade Launcher 983 | -9/Materials | Repaired Lgt. Treads 1318 | -9/Materials | Lost 7 parts (1p2n4w) 1453 | -9/Materials | Discovered new exit (range 14) 1493 | -9/Materials | Entered Mines 1535 | -9/Mines | Discovered new exit (range 16) 1923 | -9/Mines | Identified exit to Exiles 1997 | -9/Mines | Deemed a non-threat by the Exiles lab entrance 2004 | -9/Mines | Entered Exiles 2055 | -9/Exiles | Met 8R-AWN 2087 | -9/Exiles | Met EX-HEX 2139 | -9/Exiles | Met EX-BIN 2161 | -9/Exiles | Aligned with FarCom system 2163 | -9/Exiles | Given EX-Vault access code 2204 | -9/Exiles | Opened EX-Vault 2219 | -9/Exiles | Found Potential Leg 2223 | -9/Exiles | Found Potential Leg 2240 | -9/Exiles | Warned to stay clear of 0b10 Research branches 2267 | -9/Exiles | Met EX-DEC 2300 | -9/Exiles | Visited The Gauntlet 2417 | -9/Exiles | Discovered new exit (range 11) 2425 | -9/Exiles | Left Exiles lab with Potential Leg 2425 | -9/Exiles | Entered Mines 2430 | -8/Mines | Core integrity fell below 50% 2546 | -8/Mines | Discovered new exit (range 15) 2559 | -8/Mines | Entered Materials 2559 | -8/Materials | Evolved 2 slots: Propulsion x1, Utility x1 2711 | -8/Materials | Self-destructed Last Messages --------------- 02599_ Grenade Launcher destroyed. 02603_ The unstable cave ceiling collapses. 02605_ Hacking Suite destroyed. 02622_ O-16 Technician: "IFF HANDSHAKE FAILED. SECURING TERMINAL." 02626_ ALERT: Hostiles spotted, dispatching reinforcements to Terminal M001. 02641_ Acquired Axe. 02642_ Grenade Launcher destroyed. 02675_ Connecting with Terminal... 02675_ Current location identified: Materials >>Trojan(Disrupt) Trojan loaded successfully. Testing... Disruption routine running. 02702_ Dropped Hvy. Armor Plating. 02709_ Triggered Blade Trap. 02709_ Massive razor-sharp blades shoot up from within the floor. 02709_ Potential Leg severed. 02709_ Ion Engine severed. 02710_ Acquired Potential Leg. Map ----- +----------------------------------------------------+ | ???????????????????????????????????????? | | ???????????????????????????????????????? | | ???????????????????????????????????????? | | ???????????????????????????????????????? | | ???????????????????????????????????????? | | ???????????????????????????????????????? | | ???????????????????????????????????????? | | ???????????????????????????????????????? | | ???????????????????????????????????????? | | ???????????????????????????????????????? | | ???????????????????????????????????????? | | ???????????????????????????????????????? | | ??????????????????????????????o????????? | | ????????????????????????Y??????????????? | | ???????????????????????????????????????? | | ????????#####??????????????????????????? | | ????????# =#??????????????????????????? | | ????????# #??????????????????????????? | | ####????# #??????????????????????????? | | # ???# * #??????????????????????????? | | # ""???# #??????????????????????????? | | # ""S ??# ! #??????????????????????????? | | # "" ??? #?????????????##???????????? | | # ]####+##########r #???????????? | | # """ # * ????????? | | # """ + @= a ????????? | | # """ # ! ????????? | | # ### #######+### #???????????? | | # """ ???#g#?????????? #??##???????????? | | # """ Y??#g#?????????? #???????????????? | | # """????#g#?????????? #???????????????? | | ? ????# #?????????? #???????????????? | | ??# ?????#g#?????????? #???????????????? | | ??##?????# #?????????# #???????????????? | | ?????????#g#?????????# #???????????????? | | ??????####Y########### ##??????????????? | | ??????# Y # #??????????????? | | ??????# g #Y #??????????????? | | ??????# + #??????????????? | | ??????# # #??????????????? | | ??????# # #??????????????? | | ??????# # #??????????????? | | ??????############### #??????????????? | | ???????## #????#????# #???#####??????? | | ???????# ??? #???# #?? #??????? | | ???????# """ #??## ##? #??????? | | ???????# """ #??# # !!!#??????? | | ???????#=! """ #### # !!!#??????? | | ???????#= + T + !!!#??????? | | ???????# #### # #??????? | +----------------------------------------------------+ Best States ------------- Heat Dissipation 31 Energy Generation 10 Energy Capacity 250 Matter Stores 300 Matter Capacity 300 Sight Range 16 Robot Scan Range 10 Terrain Scan Density 10 Armor Coverage 750 Evasion (%) 51 Recoil Reduction 2 Offensive Hacking 10 Item Schematics ----------------- None Robot Schematics ------------------ None Fabricated ------------ Nothing Alien Tech Used ----------------- None Achievements -------------- None Challenges ------------ None Game ------ Seed BeamHypervelocityRedirector Manual? 0 Play Time 00:22:41 Cumulative 17.6 hours Start 2021.11.13 @ 09:59:03 End 2021.11.13 @ 10:30:26 Sessions 1 Manual Loads 0 Difficulty Rogue Special Mode None Game No. 20 Rogue 20 Adventurer 0 Explorer 0 Win Type - Total 0 Types 0/0/0/0/0/0/0/0/0 Lore% 25 Gallery% 26 Achievement% 25 Wizard Run 0 Options --------- ASCII 0 Keyboard 0 Movement Mouse Keybinds 0 Fullscreen 1 Font 18/SmallcapsGlow Map View 76x50 Tactical HUD 1 Map Filters NONE Filters NONE Steam 1 RUN: 3a45cc3a-430b-4779-9b22-674d5f924635